Cogmind - Beta 16.1 @@@ ROGUE MODE // 2026.02.16 @ 11:17:58 Player: beans Result: Destroyed by Y-45 Defender with Heavy Assault Rifle Performance ------------- Evolutions (1) 500 Regions Visited (4) 800 Robots Destroyed (25) 125 Value Destroyed (1372) 1372 Prototype IDs (0) 0 Alien Tech Used (0) 0 Bonus (1050) 1050 TOTAL SCORE: 3847 Bonus ------- Pacifist 200 High Alert Combat Kills 47 Follower Combat Kills 103 Entered Garrisons 200 Used RIF Installer 500 Cogmind --------- Core Integrity 0/400 Matter 160/300 Energy 42/100 System Corruption 0% Temperature Hot (218) Movement Flying (112) Ox1 Location -9/Garrison Parts ------- > --- POWER (2) -------- (None) > --- PROPULSION (3) --- Flight Unit Flight Unit VTOL Module > --- UTILITY (2) ------ Hardened Medium Armor Plating > --- WEAPON (2) ------- Particle Cannon Particle Cannon > --- INVENTORY (5) ---- Relay Coupler [Hunter] (18) Relay Coupler [Hunter] (14) Peak State ------------ > --- POWER ------------ Light Angular Momentum Engine Light Angular Momentum Engine > --- PROPULSION ------- Aluminum Leg Aluminum Leg VSS Leg > --- UTILITY ---------- (None) > --- WEAPON ----------- Particle Gun Light Assault Rifle > --- INVENTORY -------- Ion Engine VTOL Module Hardened Medium Armor Plating Relay Coupler [Hunter] Grenade Launcher [Rating: 19] Favorites ----------- Power Ion Engine Engine Ion Engine Propulsion VTOL Module Leg Aluminum Leg Flight Unit VTOL Module Utility Medium Battery Storage Medium Battery Protection Hardened Medium Armor Plating Weapon Particle Gun Energy Gun Particle Gun Energy Cannon Particle Cannon Ballistic Gun Light Assault Rifle Launcher Grenade Launcher Build | -11 -10 -9 -9 -9 ------- Run | Yrd Mat Mat Sto Gar Slots Evolved 2 | . . 2 . . Power 1 | . . 1 . . Propulsion 1 | . . 1 . . Utility . | . . . . . Weapon . | . . . . . Parts Attached 24 | 3 2 4 . 15 Power 4 | . . . . 4 Engine 4 | . . . . 4 Core . | . . . . . Reactor . | . . . . . Propulsion 11 | 2 2 1 . 6 Treads . | . . . . . Leg 5 | 2 . . . 3 Wheel . | . . . . . Hover . | . . . . . Flight 6 | . 2 1 . 3 Utility 2 | . . . . 2 Device . | . . . . . Storage 1 | . . . . 1 Processor . | . . . . . Hackware . | . . . . . Protection 1 | . . . . 1 Artifact . | . . . . . Weapon 7 | 1 . 3 . 3 Energy Gun 2 | . . 2 . . Energy Cannon 2 | . . . . 2 Ballistic Gun 2 | 1 . . . 1 Ballistic Cannon . | . . . . . Launcher 1 | . . 1 . . Special Weapon . | . . . . . Impact Weapon . | . . . . . Slashing Weapon . | . . . . . Piercing Weapon . | . . . . . Special Melee Weapon . | . . . . . Unidentified Prototypes . | . . . . . Parts Lost 15 | . . . . 15 Power 3 | . . . . 3 Propulsion 6 | . . . . 6 Utility 1 | . . . . 1 Weapon 5 | . . . . 5 Highest Loss Streak 6 | . . . . 6 To Critical Strikes . | . . . . . Average Backups 3 | . . 4 5 4 Power . | . . . . . Propulsion . | . . 1 1 1 Utility 1 | . . . . 1 Weapon 1 | . . 2 4 1 Tool/Special . | . . . . . Unused Backups 2 | . . . . 2 Power . | . . . . . Propulsion . | . . . . . Utility 2 | . . . . 2 Weapon . | . . . . . Tool/Special . | . . . . . Average Slot Usage (%) 49 | . 42 40 33 52 Engine 8 | . . . . 11 Leg 11 | . 26 . . 10 Flight 10 | . 1 31 33 8 Storage 2 | . . . . 3 Energy Gun 8 | . . 1 . 11 Ballistic Gun 5 | . 14 6 . 3 Launcher 2 | . . 1 . 2 Peak Build Rating 19 | 3 5 10 6 19 Average Rating 9 | 2 3 6 6 10 On Entrance 4 | . 3 5 6 6 Avg Prop Armor Cover (%) . | . . . . . Naked Turns 2 | . . . . 2 Heaviest Build 24 | 1 1 1 . 24 Greatest Support 32 | 20 20 12 12 32 Greatest Overweight (x) 5 | . . . . 5 Average Overweight (x) . | . . . . . Largest Inventory Capacity 5 | 5 5 5 5 5 Average Capacity 5 | 5 5 5 5 5 Most Carried 5 | 3 5 5 5 5 Average Carried 4 | . . 4 5 4 Final Capacity 5 | 5 5 5 5 5 Final Carried 5 | . 5 5 5 2 Class Distribution -------------------- 70% | Mutant 24% | Sprinter 4% | Scavenger-Mutant Dominant Class ---------------- Mutant | -10/Materials Sprinter | -9/Materials Sprinter | -9/Storage Mutant | -9/Garrison Resources | -11 -10 -9 -9 -9 ----------- Run | Yrd Mat Mat Sto Gar Matter Collected 629 | 230 . 45 . 354 Remotely . | . . . . . Salvage Created 663 | . . 73 . 590 Parts 41 | . . 8 . 33 Haulers Intercepted . | . . . . . Recyclers Shooed . | . . . . . Parts Field Recycled . | . . . . . Retrieved Matter . | . . . . . Parts Self-Destructed . | . . . . . Prevented . | . . . . . Parts Restored . | . . . . . Kills | -11 -10 -9 -9 -9 ------- Run | Yrd Mat Mat Sto Gar Combat Hostiles Destroyed 23 | . . 4 . 19 Guns 8 | . . 1 . 7 Cannons 2 | . . . . 2 AOE 13 | . . 3 . 10 Classes Destroyed 6 | . . 3 . 3 Builder 2 | . . 2 . . Swarmer 6 | . . 3 . 3 Grunt 7 | . . . . 7 Duelist 1 | . . . . 1 Sentry 8 | . . 1 . 7 Specialist 1 | . . . . 1 Best Kill Streak 6 | . . 6 . 5 Combat Bots Only 5 | . . 4 . 5 Max Kills in Single Turn 4 | . . 4 . 2 Gunslinging . | . . . . . Exploded 2 | . . 2 . 2 Melee . | . . . . . Uniques/NPCs Destroyed . | . . . . . Combat | -11 -10 -9 -9 -9 -------- Run | Yrd Mat Mat Sto Gar Hostile Shots Fired 128 | . . 12 . 116 Missed 43 | . . 8 . 35 Hits 85 | . . 4 . 81 Melee 1 | . . . . 1 Projectile 84 | . . 4 . 80 Critical Strikes 6 | . . 1 . 5 Damage Taken 1339 | . . 47 . 1292 Core 409 | . . 19 . 390 Absorbed by Shields . | . . . . . Core Remaining (%) 100 | 100 100 . . . Volleys Fired 80 | . 6 7 . 67 Largest 2 | . 1 2 . 2 Hottest 136 | . 20 130 . 136 Shots Fired 114 | . 6 8 . 100 Gun 84 | . 6 5 . 73 Cannon 6 | . . . . 6 Launcher 24 | . . 3 . 21 Special . | . . . . . Kinetic 38 | . 6 3 . 29 Thermal 52 | . . 2 . 50 Explosive 24 | . . 3 . 21 Electromagnetic . | . . . . . Robot Hit Streak 15 | . 1 3 . 15 Robot Miss Streak 3 | . 2 2 . 3 Penetration Max . | . . . . . Secondary Targets 3 | . . . . 3 Max Gunslinging Chain 1 | . . . . 1 Shots Hit Robots 61 | . 2 5 . 54 Core Hits 51 | . . 10 . 41 Critical Kills . | . . . . . Critical Parts Destroyed . | . . . . . Critical Strikes 2 | . . . . 2 Burn 2 | . . . . 2 Melee Attacks . | . . . . . Impact . | . . . . . Slashing . | . . . . . Piercing . | . . . . . Sneak Attacks . | . . . . . Combat Hostiles . | . . . . . Follow-up Attacks . | . . . . . Damage Inflicted 1979 | . 19 331 . 1629 Guns 625 | . 19 34 . 572 Cannons 82 | . . . . 82 Explosions 1272 | . . 297 . 975 Melee . | . . . . . Ramming . | . . . . . Kinetic 240 | . 19 19 . 202 Thermal 467 | . . 15 . 452 Explosive 1272 | . . 297 . 975 Electromagnetic . | . . . . . Impact . | . . . . . Slashing . | . . . . . Piercing . | . . . . . Highest Corruption . | . . . . . Average Corruption . | . . . . . Corruption Purged . | . . . . . Corruption Blocked . | . . . . . Overload Shots . | . . . . . Overflow Damage 4 | . . 2 . 2 Projectiles . | . . . . . Explosions 4 | . . 2 . 2 Melee . | . . . . . Knockbacks . | . . . . . Impact . | . . . . . Kinetic . | . . . . . Secondary . | . . . . . Self-Inflicted Damage 224 | . . . . 224 Shots 12 | . . . . 12 Rammed . | . . . . . Targets Rammed . | . . . . . Kicked . | . . . . . Crushed . | . . . . . Highest Temperature 313 | . . 54 . 313 Average Temperature 90 | . . 17 . 93 Received Heat Transfer 339 | . . 33 . 306 Effects 1 | . . . . 1 Energy Bleed 1 | . . . . 1 Siege Activations . | . . . . . Martial Activations . | . . . . . Shielding Activations . | . . . . . Robots Disrupted . | . . . . . Combat Hostiles . | . . . . . Robots Corrupted . | . . . . . Combat Hostiles . | . . . . . Parts Fried . | . . . . . Impact Corruptions . | . . . . . Robots Melted . | . . . . . Combat Hostiles . | . . . . . Parts Melted 2 | . . . . 2 Heat Transferred 1102 | . . 37 . 1065 Parts Sabotaged . | . . . . . Parts Stolen . | . . . . . Parts Stripped . | . . . . . Power Chain Reactions . | . . . . . Alert | -11 -10 -9 -9 -9 ------- Run | Yrd Mat Mat Sto Gar Maximum Alert Level 2 | . . . . 2 Low Security (%) 39 | 100 100 100 100 19 Level 1 27 | . . . . 35 Level 2 33 | . . . . 44 Level 3 . | . . . . . Level 4 . | . . . . . Level 5 . | . . . . . High Security . | . . . . . Max Security . | . . . . . Peak Influence 596 | . 30 138 57 596 Initial 57 | . . . 57 37 Average 256 | . 6 47 57 334 Influence Increases 939 | . 32 158 . 749 Destroy 0b10 Robot/C 520 | . . 80 . 440 Destroy 0b10 Robot/NC 10 | . . 10 . . Destroy Leader 30 | . . 20 . 10 Allied During Kill 14 | . . . . 14 Successful Hack 32 | . 2 . . 30 Anti-Garrison Action 150 | . . . . 150 Destroy Structure 78 | . . 18 . 60 Lose Combat Pursuer 105 | . 30 30 . 45 Influence Decreases 343 | . 32 20 81 210 Entered New Map 101 | . . . 81 20 Time Decay 52 | . 32 20 . . Lost Part 150 | . . . . 150 Lost Ally 40 | . . . . 40 Squads Dispatched 1 | . . 1 . . Investigation . | . . . . . Extermination . | . . . . . Reinforcement 1 | . . 1 . . Assault . | . . . . . Garrison . | . . . . . Intercept . | . . . . . Searches Triggered . | . . . . . Construction Impeded . | . . . . . Haulers Reinforced . | . . . . . Active Scanning Responses . | . . . . . Cargo Convoy Interrupts . | . . . . . Stealth | -11 -10 -9 -9 -9 --------- Run | Yrd Mat Mat Sto Gar Distress Signals . | . . . . . Communications Jammed . | . . . . . Distress Signals . | . . . . . Times Spotted 36 | . 4 7 . 25 Peak Tracking Total 6 | . 4 6 . 5 Tactical Retreats 3 | . 1 1 . 1 Traps | -11 -10 -9 -9 -9 ------- Run | Yrd Mat Mat Sto Gar Traps Triggered 2 | . . . . 2 Indirectly . | . . . . . Trap Hack Attempts . | . . . . . Triggered . | . . . . . Disarmed . | . . . . . Reprogrammed . | . . . . . Reused . | . . . . . Traps Extracted . | . . . . . Installed . | . . . . . Triggered . | . . . . . Machines | -11 -10 -9 -9 -9 ---------- Run | Yrd Mat Mat Sto Gar Machines Disabled 4 | . . . . 4 Max in Single Turn 1 | . . . . 1 Garrison Relay 3 | . . . . 3 Machines Repaired . | . . . . . Machines Dismantled . | . . . . . Machines Sabotaged . | . . . . . Overloaded Fab Kills . | . . . . . Hacking | -11 -10 -9 -9 -9 --------- Run | Yrd Mat Mat Sto Gar Machines Accessed 5 | . 1 . 1 3 Terminals 4 | . 1 . . 3 Fabricators . | . . . . . Repair Stations . | . . . . . Recycling Units . | . . . . . Scanalyzers . | . . . . . Garrison Access 1 | . . . 1 . Total Hacks 7 | . 2 . 1 4 Successful 5 | . 2 . 1 2 Failed 2 | . . . . 2 Catastrophic . | . . . . . Database Lockouts . | . . . . . Manual . | . . . . . Terminals 6 | . 2 . . 4 Fabricators . | . . . . . Repair Stations . | . . . . . Recycling Units . | . . . . . Scanalyzers . | . . . . . Garrison Access 1 | . . . 1 . Terminal Hacks 4 | . 2 . . 2 Record 2 | . 2 . . . Emergency Access Points 1 | . . . . 1 Security Stations 1 | . . . . 1 Fabricator Hacks . | . . . . . Repair Station Hacks . | . . . . . Recycling Unit Hacks . | . . . . . Scanalyzer . | . . . . . Garrison Access Hacks 1 | . . . 1 . Unlock Access 1 | . . . 1 . Unauthorized Hacks . | . . . . . Terminals . | . . . . . Fabricators . | . . . . . Repair Stations . | . . . . . Recycling Units . | . . . . . Scanalyzers . | . . . . . Garrison Access . | . . . . . Data Cores Recovered . | . . . . . Used . | . . . . . Hacking Detections 3 | . 1 . . 2 Full Trace Events . | . . . . . Feedback Events . | . . . . . Feedback Blocked . | . . . . . Robot Schematics Acquired . | . . . . . Robots Built . | . . . . . Authchips . | . . . . . Time . | . . . . . Total Robot Build Rating . | . . . . . Part Schematics Acquired . | . . . . . Parts Built . | . . . . . Authchips . | . . . . . Time . | . . . . . Total Part Build Rating . | . . . . . Part Studies Acquired . | . . . . . Parts Repaired . | . . . . . Time . | . . . . . Parts Recycled . | . . . . . Recycled Matter . | . . . . . Retrieved Matter . | . . . . . Retrieved Components . | . . . . . Parts Scanalyzed . | . . . . . Part Schematics Acquired . | . . . . . Parts Damaged . | . . . . . Bothacking | -11 -10 -9 -9 -9 ------------ Run | Yrd Mat Mat Sto Gar Used RIF Installer 1 | . . . . 1 Robots Hacked . | . . . . . Non-combat . | . . . . . Combat . | . . . . . Robot Hacks Applied . | . . . . . Relay Couplers Released 11 | . . . . 11 Machine Destruction 11 | . . . . 11 Fabnet Peak Effective % . | . . . . . Robots Rewired 2 | . . . . 2 Allies Hacked . | . . . . . Hacks Repelled . | . . . . . Allies | -11 -10 -9 -9 -9 -------- Run | Yrd Mat Mat Sto Gar Total Allies 2 | . . . . 2 Largest Group 2 | . . . . 2 Highest-Rated Group 45 | . . . . 45 Highest-Rated Ally 24 | . . . . 24 Total Orders . | . . . . . Ally Attacks 13 | . . . . 13 Total Damage 331 | . . . . 331 Kills 3 | . . . . 3 Allies Corrupted . | . . . . . Allies Melted . | . . . . . Intel | -11 -10 -9 -9 -9 ------- Run | Yrd Mat Mat Sto Gar Active Infowar (turns) . | . . . . . Robot Analysis Total . | . . . . . Derelict Logs Recovered . | . . . . . Drone Launches . | . . . . . Drone Recoveries . | . . . . . Exploration | -11 -10 -9 -9 -9 ------------- Run | Yrd Mat Mat Sto Gar Turns Passed 1092 | 37 135 92 7 821 Spaces Moved 841 | 32 107 194 23 485 Core 40 | 10 . . . 30 Treads . | . . . . . Legs 369 | 22 91 . . 256 Wheels . | . . . . . Hover . | . . . . . Flight 432 | . 16 194 23 199 Fastest Speed 29 | 50 32 29 29 29 Average Speed 83 | 98 106 29 29 101 Slowest Speed 300 | 120 120 32 29 300 Overloaded Moves . | . . . . . Propulsion Burnouts . | . . . . . Robots Hopped 5 | . . 2 . 3 Potential Cave-ins . | . . . . . Cave-ins Triggered . | . . . . . Exploration Rate (%) 24 | 3 26 28 5 62 Regions Visited 4 Branch Regions 1 Pre-discovered Areas . | . . . . . Known Exits Taken 1 | . . . 1 . Unknown Exits Taken 3 | 1 1 1 . . Scrap Searched . | . . . . . Spaces Dug 20 | . . . . 20 Terrain Destroyed 73 | . . 25 . 48 Melee . | . . . . . Projectile . | . . . . . AOE 73 | . . 25 . 48 Terrain Rammed . | . . . . . Walls Destroyed . | . . . . . Machines Disabled . | . . . . . Actions | -11 -10 -9 -9 -9 --------- Run | Yrd Mat Mat Sto Gar Total 1109 | 37 121 219 23 709 Wait 131 | . . 12 . 119 Move 829 | 31 106 189 23 480 Hop 4 | . . 2 . 2 Pick Up 19 | 3 6 1 . 9 Fast Attach 7 | . . . . 7 Attach 18 | 3 . 2 . 13 Detach 3 | . . 2 . 1 Swap 8 | . 2 3 . 3 Drop 3 | . 1 1 . 1 Fire 80 | . 6 7 . 67 Melee . | . . . . . Ram . | . . . . . Kick . | . . . . . Crush . | . . . . . Escape Stasis . | . . . . . Rewire 7 | . . . . 7 Trap . | . . . . . Miscellaneous . | . . . . . Route ------- -11/Scrapyard -10/Materials -9/Materials (discovered 2 exits: [*Mat] / *Sto) -9/Storage -9/Garrison (discovered 2 exits: [*Rec x2]) History --------- Turn | Location | Event 3 | -11/Scrapyard | Discovered new exit (range 15) 38 | -11/Scrapyard | Entered Materials 150 | -10/Materials | Discovered new exit (range 6) 173 | -10/Materials | Entered another Materials area 173 | -9/Materials | Evolved 2 slots: Power x1, Propulsion x1 215 | -9/Materials | Discovered new exit (range 3) 263 | -9/Materials | Discovered new exit (range 10) 265 | -9/Materials | Entered Storage 272 | -9/Storage | Identified exit to Garrison 272 | -9/Storage | Entered Garrison 297 | -9/Garrison | Garrison Relay disabled 307 | -9/Garrison | Garrison Relay disabled 332 | -9/Garrison | Triggered checkpoint 402 | -9/Garrison | Installed Relay Interface Framework 478 | -9/Garrison | Lost 3 parts (3n) 658 | -9/Garrison | Triggered checkpoint 681 | -9/Garrison | Triggered checkpoint 724 | -9/Garrison | Triggered checkpoint 750 | -9/Garrison | Garrison Relay disabled 854 | -9/Garrison | Build established: Mutant 858 | -9/Garrison | Discovered new exit (range 15) 988 | -9/Garrison | Discovered new exit (range 13) 1014 | -9/Garrison | Core integrity fell below 50% 1016 | -9/Garrison | Triggered checkpoint 1038 | -9/Garrison | Core integrity fell below 20% 1067 | -9/Garrison | Learned Recycling security intel 1072 | -9/Garrison | Lost 6 parts (1p1n1u3w) 1093 | -9/Garrison | Destroyed by Y-45 Defender with Heavy Assault Rifle Last Messages --------------- S-10 Pest destroyed. Switching to secondary target: Y-45 Defender. S-10 Pest destroyed. Switching to secondary target: Y-45 Defender. Critical hit (Burn: +37). Hvy. Assault Rifle destroyed. Critical hit (Burn: +37). Lgt. Assault Rifle destroyed. Med. Battery destroyed. Acquired Flight Unit. Connecting with Garrison Terminal... >>Download(Security) Retrieving Recycling security records... Downloaded coordinate data. Data stored: Recycling security intel. Acquired Particle Cannon. Y-45 Defender destroyed. Machine disabled. Imp. Ion Engine melted. Y-45 Defender destroyed. Map ----- +----------------------------------------------------+ | | | ?????????????????????????????????????????????????? | | ?????????????????????????????????????????????????? | | ?????????????????????????????????????????????????? | | ?????????????????????????????????????????????????? | | ?????????????????????????????????????????????????? | | ?????????????????????????????????????????????????? | | ?????????????????????????????????????????????????? | | ????????????????? ???????????????????????????????? | | ????????????????? ???????????????????????????????? | | ????????????????? ???????????????????????????????? | | ????????????????? ???????????????????????????????? | | ????????????????? ???????????????????????????????? | | ????????????????? ???????????????????????????????? | | ????????????????? ???????????????????????????????? | | ????????????????# #??????????????????????????????? | | ????????????????# ###????????????????????????????? | | ????????????????#+#"#???####?????????????????????? | | ????????????????# "#???#" #?????????????????????? | | ??????????"""???# "#???#T #?????????????????????? | | ??????????"?"???# "#???#" #?????????????????????? | | ??????????"?"???# #"#???## #?????????????????????? | | ??????????"?"???# ###???## ##????????????????????? | | ?????????+???+??# #?????#] !#????????????????????? | | ????????????????# #?????#]=!#????????????????????? | | ????????????????# #?????#@!!#????????????????????? | | ??????????????### #?????#==!#????????????????????? | | ???????????+### ########Y##????????????????????? | | ?????????????%+[% !#?????????????????????? | | ??????????????#=%=######+###?????????????????????? | | ??????????????### #??????????????????????????????? | | ????????????????# #??????????????????????????????? | | ??????????#+##### ###### #???????????????????????? | | < ######### + #????????++?????????????? | | ###### #### #???????????????????????? | | #?????##????????????????????????????? | | ######+#### #???????????????????????????????????? | | ??????????# #???????????????????????????????????? | | ??????????# #???????????????????????????????????? | | ??????????+ +???????????????????????????????????? | | ??????????# #???????????????????????????????????? | | ??????????# #??????????????+????? ?????????????? | | ??????????# #???????????????????# ?????????????? | | ??????????# ###??????##+###""""## ##???????????? | | ??????????# #T###+#### #???????????? | | ??????????# #???????????? | | ??????????# #???????????? | | ??????????############# ## ## #???????????? | | ????????????????????### ## ## ###?????????? | | ????????????????????# #?????????? | +----------------------------------------------------+ Best States ------------- Heat Dissipation 28 Energy Generation 31 Energy Capacity 450 Matter Stores 300 Matter Capacity 300 Sight Range 16 Terrain Scan Density 10 Armor Coverage 225 Evasion (%) 64 Item Schematics ----------------- None Robot Schematics ------------------ None Fabricated ------------ Nothing Repaired ---------- Nothing Studied --------- None Alien Tech Used ----------------- None Achievements -------------- None Challenges ------------ None Game ------ Seed SurgeProjectionAxe Manual? 0 Play Time 00:14:05 Cumulative 240.4 hours Start 2026.02.16 @ 11:09:34 End 2026.02.16 @ 11:17:58 Sessions 1 Manual Loads 0 Difficulty Rogue Special Mode None Game No. 659 Rogue 658 Adventurer 1 Explorer 0 Win Type - Total 0 Types 0/0/0/0/0/0/0/0/0/0 Lore% 65 Gallery% 61 Achievement% 41 Wizard Run 0 Options --------- Layout 1 ASCII 0 Keyboard 0 Movement Mouse Keybinds 0 Fullscreen 1 Font 24/Smallcaps Map View 50x35 Zoom Use 0% Tactical HUD 0 Map Filters NONE Filters NONE Steam 1 RUN: 94cdf8c3-a9bd-4cf8-9920-53fa4917f9ca